bitfinex/quotes_SOLUSD_20250531
["timestamp","ask_amount","ask_price","bid_price","bid_amount"]
[1748661709398,8.33333333,152.78,152.74,34.03530929]
[1748661711220,34.03530929,152.77,152.72,0.14216157]
[1748661711384,14.87892855,152.78,152.73,0.14216157]
[1748661711582,14.87892855,152.78,152.74,0.14216157]
[1748661711583,48.91423784,152.78,152.74,0.14216157]
[1748661712095,40.58090451,152.78,152.74,0.14216157]
[1748661712404,34.03530929,152.78,152.74,0.14216157]
[1748661712779,34.03530929,152.79,152.74,34.17747086]
[1748661713291,34.03530929,152.78,152.74,0.14216157]
[1748661713702,34.03530929,152.79,152.75,0.14216157]
[1748661714291,22.45730846,152.81,152.75,0.14216157]
[1748661714491,34.03530929,152.79,152.75,0.14216157]
[1748661715000,65.35730846,152.81,152.76,0.14216157]
[1748661715304,15.91314725,152.81,152.77,34.03530929]
[1748661715498,31.10232206,152.82,152.76,0.14216157]
[1748661715499,31.10232206,152.82,152.78,34.03530929]
[1748661717099,31.10232206,152.82,152.8,34.03530929]
[1748661717307,31.10232206,152.82,152.81,0.14216157]
[1748661717486,31.10232206,152.82,152.79,18.79181043]
[1748661717487,31.10232206,152.82,152.79,34.17747086]
[1748661717684,31.10232206,152.82,152.81,60.31963243]
[1748661717884,31.10232206,152.82,152.81,78.96928129]
[1748661718289,22.76912206,152.82,152.81,52.96928129]
[1748661719123,22.76912206,152.82,152.81,59.51335563]
[1748661721199,22.76912206,152.82,152.81,26.0]
[1748661721523,22.76912206,152.82,152.81,34.31963243]
[1748661721689,22.76912206,152.82,152.81,52.96928129]
[1748661722489,12.01605768,152.93,152.84,26.0]
[1748661722703,12.01605768,152.93,152.9,34.17747086]
[1748661722909,12.01605768,152.93,152.92,0.14216157]
[1748661723119,34.03530929,152.97,152.93,0.28432314]
[1748661723405,40.57266694,152.97,152.93,0.28432314]
[1748661723612,34.03530929,152.96,152.93,0.14216157]
[1748661723783,6.53685531,152.98,152.93,0.14216157]
[1748661723985,8.6417,152.99,152.94,0.14216157]
[1748661723986,0.8125,152.99,152.94,0.14216157]
[1748661724218,34.03530929,152.98,152.94,0.14216157]
[1748661724794,41.38429717,152.99,152.94,0.14216157]
[1748661725008,0.8125,152.99,152.98,34.31963243]
[1748661725652,0.8125,152.99,152.98,52.96928129]
[1748661726138,0.8125,152.99,152.98,0.14216157]
[1748661726351,0.8125,152.99,152.97,0.14216157]
[1748661726640,7.34887492,152.99,152.97,0.14216157]
[1748661727156,0.8125,152.99,152.97,0.14216157]
[1748661727951,7.34897728,152.99,152.97,0.14216157]
[1748661728530,7.34897728,152.99,152.96,0.28432314]
[1748661729052,7.34897728,152.99,152.96,34.31963243]
[1748661729643,34.03530929,152.97,152.94,12.0]
[1748661729881,34.03530929,152.95,152.89,46.03530929]
[1748661730052,34.03530929,152.93,152.89,12.0]
[1748661730361,42.68,152.97,152.89,46.03530929]
[1748661730362,34.03530929,152.94,152.89,46.03530929]
[1748661730860,34.03530929,152.94,152.9,0.28432314]
[1748661731041,34.03530929,152.97,152.93,0.14216157]
[1748661731243,40.5728244,152.97,152.93,0.14216157]
[1748661731458,34.03530929,152.96,152.91,34.17747086]
[1748661731759,34.03530929,152.95,152.92,0.14216157]
[1748661731934,34.03530929,152.94,152.92,0.14216157]
[1748661732355,6.53751511,152.97,152.89,12.0]
[1748661732356,34.03530929,152.93,152.89,12.0]
[1748661732562,34.03530929,152.91,152.89,12.0]
[1748661732736,34.03530929,152.92,152.89,12.0]
[1748661733259,6.53979465,152.91,152.89,12.0]
[1748661733654,26.0,152.98,152.89,12.0]
[1748661733655,26.0,152.98,152.9,18.933972]
[1748661733856,34.03530929,152.96,152.92,0.14216157]
[1748661734152,0.8125,152.99,152.96,0.14216157]
[1748661734359,34.84780929,152.99,152.95,0.14216157]
[1748661734537,34.03530929,152.98,152.95,0.14216157]
[1748661734742,34.03530929,152.97,152.95,0.14216157]
[1748661735045,34.03530929,152.98,152.95,0.14216157]
[1748661735438,7.34928434,152.99,152.95,0.14216157]
[1748661735641,0.8125,152.99,152.96,0.14216157]
[1748661736161,34.03530929,152.98,152.95,0.14216157]
[1748661736350,34.03530929,152.98,152.94,0.28432314]
[1748661736547,34.03530929,152.98,152.85,70.5537]
[1748661736548,34.03530929,152.95,152.86,34.03530929]
[1748661736854,34.03530929,152.91,152.85,52.17020929]
[1748661737045,34.03530929,152.9,152.85,78.17020929]
[1748661737379,34.03530929,152.9,152.81,1.5244]
[1748661737380,34.03530929,152.86,152.81,6.4378]
[1748661737584,22.89077827,152.9,152.79,12.0]
[1748661737585,34.03530929,152.83,152.79,12.0]
[1748661737796,34.03530929,152.83,152.78,34.03530929]
[1748661738067,1.6411,152.88,152.79,52.96928129]
[1748661738283,34.03530929,152.83,152.78,60.03530929]
[1748661738442,34.03530929,152.81,152.78,26.0]
[1748661738760,34.03530929,152.8,152.77,12.0]
[1748661738936,34.03530929,152.81,152.78,0.14216157]
[1748661739140,68.7,152.85,152.78,0.28432314]
[1748661739360,34.03530929,152.82,152.78,0.28432314]
[1748661739876,40.57937025,152.82,152.78,0.28432314]
[1748661740171,52.49452577,152.86,152.81,71.42849777]
[1748661740408,59.05113202,152.9,152.84,0.14216157]
[1748661740691,6.54065014,152.89,152.84,18.933972]
[1748661740867,6.54065014,152.89,152.84,52.77884891]
[1748661741270,6.5403258,152.9,152.86,0.28432314]
[1748661741501,59.03441337,152.91,152.86,52.77884891]
[1748661741683,6.5398876,152.91,152.86,52.77884891]
[1748661741884,6.53938161,152.92,152.88,0.28432314]
[1748661742093,59.03390738,152.92,152.88,0.28432314]
[1748661742304,52.49452577,152.91,152.88,0.28432314]
[1748661742879,52.49452577,152.91,152.86,52.49452577]
[1748661742880,52.49452577,152.9,152.86,0.28432314]
[1748661743293,52.49452577,152.89,152.86,0.14216157]
[1748661744072,52.49452577,152.89,152.83,38.0]
[1748661744277,42.68,152.9,152.83,90.49452577]
[1748661744485,52.49452577,152.88,152.83,90.49452577]
[1748661744688,52.49452577,152.86,152.83,38.0]
[1748661745006,52.49452577,152.85,152.8,6.4378]
[1748661745176,52.49452577,152.81,152.78,12.0]
[1748661745598,52.49452577,152.79,152.74,52.49452577]
[1748661745803,22.90126283,152.83,152.74,52.49452577]
[1748661746104,52.49452577,152.79,152.75,0.28432314]
[1748661746600,52.49452577,152.78,152.74,18.64964886]
[1748661746800,52.49452577,152.79,152.75,0.28432314]
[1748661747500,52.49452577,152.79,152.74,18.64964886]
[1748661747719,52.49452577,152.79,152.75,0.28432314]
[1748661747894,52.49452577,152.78,152.73,90.49452577]
[1748661748093,52.49452577,152.78,152.74,0.28432314]
[1748661748408,52.49452577,152.79,152.74,71.14417463]
[1748661748591,52.49452577,152.78,152.75,0.28432314]
[1748661748990,52.49452577,152.79,152.75,0.28432314]
[1748661749542,205.93742369,152.84,152.79,0.28432314]
[1748661749694,52.49452577,152.83,152.79,18.933972]
[1748661750025,52.49452577,152.84,152.79,52.77884891]
[1748661750387,59.03743179,152.84,152.79,52.77884891]
[1748661750611,52.49452577,152.82,152.77,59.15832577]
[1748661750787,52.49452577,152.81,152.77,0.14216157]
[1748661750987,52.49452577,152.81,152.77,0.28432314]
[1748661751389,52.49452577,152.81,152.73,61.397]
[1748661751390,52.49452577,152.78,152.72,146.65452577]
[1748661751626,52.49452577,152.75,152.72,94.16]
[1748661751790,52.49452577,152.75,152.71,12.04]
[1748661751791,52.49452577,152.74,152.71,12.04]
[1748661752190,59.04172871,152.74,152.71,12.04]
[1748661752391,52.49452577,152.74,152.71,12.04]
[1748661752813,52.49452577,152.73,152.71,12.04]
[1748661752995,52.49452577,152.72,152.65,12.04]
[1748661753201,52.49452577,152.69,152.65,12.04]
[1748661753400,42.84,152.74,152.65,12.04]
[1748661753401,52.49452577,152.67,152.65,12.04]
[1748661754816,49.40840532,152.71,152.65,12.04]
[1748661755022,52.49452577,152.67,152.65,12.04]
[1748661755814,52.49452577,152.69,152.65,12.04]
[1748661756011,52.49452577,152.68,152.65,12.04]
[1748661757527,52.49452577,152.67,152.65,12.04]
[1748661757726,52.49452577,152.66,152.61,94.22]
[1748661757938,52.49452577,152.66,152.62,0.14216157]
[1748661758724,42.82,152.68,152.64,0.14216157]
[1748661758927,52.49452577,152.67,152.63,0.14216157]
[1748661759124,18.64964886,152.75,152.63,0.14216157]
[1748661759125,10.0,152.96,152.74,26.0]
[1748661759438,50.0,152.97,152.74,26.0]
[1748661759439,43.02,152.89,152.79,18.933972]
[1748661759739,12.04,152.97,152.85,0.14216157]
[1748661759930,52.49452577,152.9,152.83,12.04]
[1748661760110,52.49452577,152.89,152.84,18.933972]
[1748661760314,52.49452577,152.9,152.84,71.42849777]
[1748661760938,52.49452577,152.86,152.83,12.04]
[1748661761144,52.49452577,152.85,152.81,0.28432314]
[1748661761318,95.49452577,152.86,152.81,6.82822869]
[1748661761512,12.04,152.91,152.84,18.64964886]
[1748661761723,52.49452577,152.89,152.85,0.28432314]
[1748661761933,95.49452577,152.9,152.85,0.28432314]
[1748661762142,10.0,152.96,152.87,52.49452577]
[1748661762143,12.04,152.96,152.87,52.49452577]
[1748661762352,52.49452577,152.93,152.88,0.28432314]
[1748661762814,44.5776569,152.96,152.88,0.28432314]
[1748661763036,52.49452577,152.93,152.88,52.77884891]
[1748661763256,43.0,152.92,152.88,0.28432314]
[1748661763579,43.0,152.92,152.84,12.04]
[1748661763580,52.49452577,152.89,152.84,12.04]
[1748661763736,52.49452577,152.87,152.84,12.04]
[1748661763939,42.98,152.89,152.84,12.04]
[1748661764168,52.49452577,152.88,152.84,0.14216157]
[1748661764460,42.98,152.89,152.84,0.14216157]
[1748661764668,52.49452577,152.88,152.84,0.14216157]
[1748661764837,42.98,152.89,152.84,0.14216157]
[1748661765042,52.49452577,152.88,152.84,0.28432314]
[1748661765655,59.03568308,152.88,152.84,0.28432314]
[1748661766336,52.49452577,152.85,152.82,0.14216157]
[1748661766544,6.54115731,152.88,152.81,71.14417463]
[1748661766545,42.9,152.86,152.81,71.14417463]
[1748661766749,42.9,152.86,152.82,0.14216157]
[1748661766951,42.9,152.86,152.82,52.77884891]
[1748661768135,95.39452577,152.86,152.8,26.0]
[1748661768344,52.49452577,152.85,152.8,78.49452577]
[1748661768571,52.49452577,152.84,152.8,0.14216157]
[1748661768739,52.49452577,152.83,152.79,30.68964886]
[1748661768947,52.49452577,152.83,152.8,0.28432314]
[1748661769246,52.49452577,152.82,152.79,12.04]
[1748661769461,42.84,152.83,152.8,0.28432314]
[1748661769873,42.84,152.83,152.8,0.14216157]
[1748661770165,95.33452577,152.83,152.8,0.28432314]
[1748661770592,42.84,152.83,152.8,0.28432314]
[1748661771875,42.84,152.83,152.8,77.97267806]
[1748661772074,42.84,152.83,152.82,0.14216157]
[1748661773069,42.78,152.85,152.82,0.14216157]
[1748661773509,42.76,152.85,152.82,0.14216157]
[1748661773817,146.9,152.89,152.84,52.49452577]
[1748661773995,52.49452577,152.88,152.83,52.63668734]
[1748661774301,95.33452577,152.89,152.84,52.49452577]
[1748661774472,52.49452577,152.89,152.84,52.49452577]
[1748661774677,42.82,152.88,152.84,52.49452577]
[1748661774877,95.31452577,152.88,152.83,52.63668734]
[1748661775079,95.31452577,152.88,152.83,0.14216157]
[1748661775509,95.31452577,152.88,152.83,52.63668734]
[1748661775510,101.85561271,152.88,152.83,52.63668734]
[1748661776015,42.82,152.88,152.84,0.14216157]
[1748661776597,42.82,152.88,152.85,0.14216157]
[1748661776794,42.78,152.89,152.85,52.49452577]
[1748661777318,95.27452577,152.89,152.84,52.77884891]
[1748661778023,52.49452577,152.89,152.84,52.77884891]
[1748661778227,52.49452577,152.88,152.81,26.0]
[1748661778443,52.49452577,152.88,152.84,0.28432314]
[1748661778808,95.25452577,152.89,152.84,52.77884891]
[1748661780631,95.25452577,152.89,152.84,59.32153567]
[1748661780815,42.74,152.88,152.84,52.77884891]
[1748661781011,52.49452577,152.87,152.83,0.14216157]
[1748661781419,42.74,152.88,152.84,52.49452577]
[1748661781616,42.74,152.88,152.83,0.14216157]
[1748661781617,95.23452577,152.88,152.83,0.14216157]
[1748661781915,42.74,152.88,152.84,52.49452577]
[1748661782309,52.49452577,152.92,152.87,0.14216157]
[1748661782511,52.49452577,152.95,152.9,0.14216157]
[1748661782716,8.6623,152.99,152.93,52.63668734]
[1748661782925,8.6623,152.99,152.97,52.49452577]
[1748661782926,0.8125,152.99,152.97,52.49452577]
[1748661783225,0.8125,152.99,152.98,18.79181043]
[1748661783527,0.8125,152.99,152.95,6.1829]
[1748661783528,53.30702577,152.99,152.93,78.49452577]
[1748661783727,52.49452577,152.96,152.94,0.14216157]
[1748661784105,95.25452577,152.98,152.94,0.14216157]
[1748661784338,52.49452577,152.97,152.94,0.14216157]
[1748661784712,0.8125,152.99,152.95,0.14216157]
[1748661784913,0.8125,152.99,152.97,0.14216157]
[1748661785123,0.8125,152.99,152.96,0.14216157]
[1748661785845,0.8125,152.99,152.98,52.77884891]
[1748661786009,0.8125,152.99,152.98,71.42849777]
[1748661786719,0.8125,152.99,152.98,103.96529996]
[1748661787322,0.8125,152.99,152.98,97.42849777]
[1748661787829,0.8125,152.99,152.98,103.96529996]
[1748661788132,0.8125,152.99,152.98,0.28432314]
[1748661788434,0.8125,152.99,152.98,71.42849777]
[1748661788732,0.8125,152.99,152.98,77.96529996]
[1748661789421,0.8125,152.99,152.98,71.42849777]
[1748661790034,0.8125,152.99,152.98,0.14216157]
[1748661790210,0.8125,152.99,152.95,37.96]
[1748661790211,0.8125,152.99,152.96,52.49452577]
[1748661790608,0.8125,152.99,152.95,90.45452577]
[1748661790807,59.84347083,152.99,152.95,11.96]
[1748661791010,52.49452577,152.96,152.91,52.49452577]
[1748661791206,52.49452577,152.96,152.91,78.49452577]
[1748661791456,52.49452577,152.95,152.91,26.0]
[1748661791604,52.49452577,152.97,152.92,52.77884891]
[1748661791810,42.74,152.97,152.94,52.77884891]
[1748661792041,42.74,152.97,152.94,0.28432314]
[1748661792419,95.23452577,152.97,152.94,0.28432314]
[1748661793039,101.77182259,152.97,152.94,0.28432314]
[1748661793236,101.77182259,152.97,152.94,0.14216157]
[1748661796159,52.49452577,152.96,152.92,0.14216157]
[1748661796342,52.49452577,152.96,152.91,85.03431456]
[1748661796542,101.77182259,152.97,152.91,85.03431456]
[1748661796768,101.77182259,152.97,152.92,71.42849777]
[1748661796951,42.62,152.96,152.92,71.42849777]
[1748661797361,42.62,152.96,152.92,0.28432314]
[1748661797539,95.11452577,152.96,152.91,78.49452577]
[1748661798049,6.53729682,152.97,152.94,0.14216157]
[1748661798246,0.8125,152.99,152.96,0.14216157]
[1748661798543,0.8125,152.99,152.98,52.78909037]
[1748661798856,0.8125,152.99,152.98,65.44209256]
[1748661800060,0.8125,152.99,152.98,97.25628222]
[1748661800264,0.8125,152.99,152.98,26.28432314]
[1748661800451,0.8125,152.99,152.98,0.28432314]
[1748661800662,0.8125,152.99,152.98,52.60663336]
[1748661800863,0.8125,152.99,152.98,0.14216157]
[1748661803477,59.67131897,152.99,152.92,52.32231022]
[1748661803683,42.56,152.98,152.93,78.32231022]
[1748661803884,42.56,152.98,152.94,52.32231022]
[1748661804178,42.56,152.98,152.94,0.14216157]
[1748661804380,7.34900875,152.99,152.95,0.14216157]
[1748661804557,43.3525,152.99,152.95,52.46447179]
[1748661804756,0.8125,152.99,152.97,0.14216157]
[1748661804958,0.8125,152.99,152.97,52.46447179]
[1748661805361,0.8125,152.99,152.98,52.46447179]
[1748661805557,0.8125,152.99,152.98,71.25628222]
[1748661806574,0.8125,152.99,152.98,77.79308441]
[1748661806791,0.8125,152.99,152.98,103.79308441]
[1748661808372,0.8125,152.99,152.98,25.47077419]
[1748661808570,0.8125,152.99,152.98,77.79308441]
[1748661810865,0.5283,152.99,152.98,121.76368441]
[1748661811065,42.4,153.1,153.03,0.28432314]
[1748661811282,42.4,153.1,153.05,52.32231022]
[1748661811815,58.85270922,153.13,153.08,52.32231022]
[1748661811994,58.85235646,153.14,153.08,52.32231022]
[1748661812174,101.23235646,153.14,153.08,52.32231022]
[1748661812367,101.23235646,153.14,153.09,18.933972]
[1748661812687,6.52921869,153.16,153.12,52.32231022]
[1748661812892,52.32231022,153.15,153.11,52.32231022]
[1748661813066,6.52921869,153.16,153.09,52.32231022]
[1748661813067,52.32231022,153.13,153.09,52.32231022]
[1748661813267,94.68231022,153.14,153.09,52.32231022]
[1748661813890,42.36,153.14,153.1,18.933972]
[1748661814197,42.36,153.14,153.1,71.25628222]
[1748661814389,42.36,153.14,153.11,52.32231022]
[1748661815610,6.52921869,153.16,153.11,52.32231022]
[1748661815811,42.3,153.17,153.14,52.32231022]
[1748661816016,94.62231022,153.17,153.12,71.25628222]
[1748661816221,52.32231022,153.17,153.12,71.25628222]
[1748661816395,6.52792352,153.19,153.13,52.32231022]
[1748661816597,42.28,153.17,153.13,52.32231022]
[1748661817411,94.58231022,153.17,153.12,71.25628222]
[1748661817609,52.32231022,153.15,153.11,26.0]
[1748661817799,94.58231022,153.17,153.12,52.32231022]
[1748661818592,42.26,153.17,153.13,52.32231022]
[1748661819006,94.58231022,153.17,153.13,52.32231022]
[1748661820117,82.54942582,153.17,153.12,52.41028739]
[1748661820409,42.2,153.16,153.12,52.41028739]
[1748661820998,33.76063853,153.15,153.11,59.76063853]
[1748661821201,48.72919876,153.16,153.09,71.54063853]
[1748661821202,33.76063853,153.14,153.09,71.54063853]
[1748661821399,75.92063853,153.13,153.09,37.78]
[1748661821721,75.94063853,153.13,153.08,33.76063853]
[1748661822016,33.76063853,153.09,153.05,43.63594772]
[1748661822197,42.2,153.1,153.06,52.41028739]
[1748661823024,42.18,153.12,153.08,52.41028739]
[1748661823190,33.76063853,153.14,153.1,33.76063853]
[1748661823392,75.96063853,153.14,153.1,33.76063853]
[1748661824222,42.2,153.14,153.1,40.29207831]
[1748661824401,42.18,153.14,153.1,40.29207831]
[1748661825106,33.76063853,153.15,153.1,40.29207831]
[1748661825411,33.76063853,153.15,153.11,18.933972]
[1748661825719,33.76063853,153.17,153.12,33.76063853]
[1748661827234,33.76063853,153.17,153.12,40.29142115]
[1748661827832,33.76063853,153.2,153.14,33.76063853]
[1748661828128,48.62104792,153.21,153.16,33.76063853]
[1748661828329,33.76063853,153.2,153.15,33.76063853]
[1748661828709,8.33333333,153.21,153.15,33.76063853]
[1748661828912,33.76063853,153.2,153.15,33.76063853]
[1748661829845,8.33333333,153.21,153.17,33.76063853]
[1748661829994,48.62103367,153.21,153.17,11.78]
[1748661830840,33.76063853,153.19,153.17,11.78]
[1748661831127,33.76063853,153.18,153.11,33.76063853]
[1748661831467,33.76063853,153.15,153.12,11.76]
[1748661832021,40.29019718,153.15,153.12,11.76]
[1748661832243,33.76063853,153.14,153.12,11.76]
[1748661833240,33.76063853,153.13,153.09,105.8]
[1748661833529,33.76063853,153.13,153.09,139.56063853]
[1748661833764,6.52967233,153.15,153.09,139.56063853]
[1748661833765,33.76063853,153.14,153.09,139.56063853]
[1748661833929,33.76063853,153.14,153.1,33.76063853]
[1748661834130,33.76063853,153.13,153.09,105.8]
[1748661834436,1.5349,153.18,153.11,18.933972]
[1748661834641,33.76063853,153.15,153.11,18.933972]
[1748661834849,33.76063853,153.16,153.11,52.69461053]
[1748661835433,33.76063853,153.16,153.12,6.53082549]
[1748661835646,33.76063853,153.17,153.12,40.29146402]
[1748661836530,6.52818735,153.19,153.13,18.933972]
[1748661836851,27.5349,153.22,153.13,52.69461053]
[1748661836852,33.76063853,153.18,153.13,52.69461053]
[1748661837154,69.5549,153.22,153.13,52.69461053]
[1748661837341,6.52748541,153.2,153.14,6.52997257]
[1748661837652,33.76063853,153.18,153.15,11.76]
[1748661837848,33.76063853,153.19,153.15,11.76]
[1748661838936,33.76063853,153.17,153.15,11.76]
[1748661839353,33.76063853,153.18,153.15,11.76]
[1748661840048,8.33333333,153.21,153.15,18.28947556]
[1748661840238,8.33333333,153.21,153.16,33.76063853]
[1748661840438,8.33333333,153.21,153.15,52.05011409]
[1748661840639,33.76063853,153.2,153.15,52.05011409]
[1748661840859,14.86044149,153.21,153.12,6.1983]
[1748661841079,33.76063853,153.17,153.13,18.79181043]
[1748661841381,33.76063853,153.18,153.14,0.14216157]
[1748661841539,33.76063853,153.18,153.14,6.67199301]
[1748661841948,41.98,153.2,153.14,6.67199301]
[1748661842145,33.76063853,153.17,153.13,25.32218611]
[1748661842652,33.76063853,153.15,153.12,37.54]
[1748661842966,33.76063853,153.14,153.12,11.54]
[1748661843360,33.76063853,153.13,153.12,11.54]
[1748661843667,6.53082549,153.12,153.05,43.50574778]
[1748661843867,33.76063853,153.12,153.07,18.64964886]
[1748661844065,33.76063853,153.11,153.07,18.64964886]
[1748661844271,33.76063853,153.1,153.06,11.54]
[1748661844481,22.85341168,153.15,153.02,33.76063853]
[1748661844482,41.96,153.12,153.02,33.76063853]
[1748661844641,33.76063853,153.06,153.01,45.30063853]
[1748661844842,33.76063853,153.06,153.01,71.30063853]
[1748661845038,33.76063853,153.07,153.02,33.76063853]
[1748661845285,33.76063853,153.05,153.01,11.54]
[1748661845441,147.04216157,153.11,153.01,11.54]
[1748661845442,33.76063853,153.04,153.01,11.54]
[1748661845663,33.76063853,153.04,152.95,45.30063853]
[1748661845664,33.76063853,153.02,152.95,45.30063853]
[1748661845868,33.76063853,152.98,152.94,11.54]
[1748661846095,33.76063853,152.99,152.95,0.14216157]
[1748661846469,42.02,153.03,152.94,11.54]
[1748661846692,33.76063853,152.99,152.95,0.14216157]
[1748661846901,42.02,153.03,152.95,18.933972]
[1748661847193,33.76063853,152.99,152.94,45.30063853]
[1748661847371,33.76063853,152.98,152.94,11.54]
[1748661847573,33.76063853,152.97,152.94,11.54]
[1748661847802,33.76063853,152.96,152.94,11.54]
[1748661847977,33.76063853,152.95,152.89,105.58]
[1748661848177,33.76063853,152.94,152.89,112.120629]
[1748661848375,33.76063853,152.96,152.9,33.76063853]
[1748661848577,33.76063853,152.93,152.89,105.58]
[1748661848998,6.53704765,152.98,152.89,105.58]
[1748661848999,33.76063853,152.92,152.89,105.58]
[1748661849181,33.76063853,152.92,152.89,11.54]
[1748661849586,33.76063853,152.91,152.89,11.54]
[1748661849790,33.76063853,152.92,152.89,11.54]
[1748661850513,48.65850525,152.95,152.89,11.54]
[1748661850514,33.76063853,152.94,152.89,11.54]
[1748661850687,33.76063853,152.92,152.89,11.54]
[1748661850999,48.65818836,152.95,152.85,40.30290703]
[1748661851000,33.76063853,152.9,152.85,40.30290703]
[1748661851198,33.76063853,152.9,152.85,66.30290703]
[1748661851402,33.76063853,152.91,152.86,0.14216157]
[1748661851606,33.76063853,152.91,152.86,33.9028001]
[1748661851793,33.76063853,152.9,152.86,0.14216157]
[1748661852582,33.76063853,152.91,152.86,33.9028001]
[1748661852786,33.76063853,152.91,152.86,0.14216157]
[1748661852977,6.53851183,152.94,152.86,33.9028001]
[1748661853182,33.76063853,152.91,152.86,33.9028001]
[1748661854690,33.76063853,152.91,152.86,0.14216157]
[1748661854891,33.76063853,152.9,152.85,59.76063853]
[1748661855195,33.76063853,152.89,152.84,11.54]
[1748661855506,33.76063853,152.88,152.84,11.54]
[1748661856511,33.76063853,152.86,152.84,11.54]
[1748661857623,33.76063853,152.87,152.84,11.54]
[1748661858000,180.66063853,152.9,152.85,33.76063853]
[1748661858202,187.20105869,152.9,152.85,33.76063853]
[1748661858430,180.66063853,152.9,152.85,33.76063853]
[1748661858607,33.76063853,152.89,152.84,45.30063853]
[1748661859009,33.76063853,152.88,152.84,11.54]
[1748661859511,33.76063853,152.89,152.84,45.30063853]
[1748661859722,33.76063853,152.88,152.84,11.54]
[1748661860107,33.76063853,152.89,152.84,45.30063853]
[1748661860428,153.44022582,152.9,152.84,45.30063853]
[1748661860723,33.76063853,152.88,152.84,11.54]
[1748661861118,33.76063853,152.86,152.81,26.0]
[1748661861317,153.44022582,152.9,152.81,26.0]
[1748661861318,33.76063853,152.85,152.81,26.0]
[1748661861718,33.76063853,152.86,152.81,59.76063853]
[1748661862023,146.9,152.9,152.85,26.0]
[1748661862205,153.43890905,152.94,152.88,33.76063853]
[1748661862533,33.76063853,152.92,152.87,33.76063853]
[1748661863195,33.76063853,152.91,152.86,59.76063853]
[1748661863612,33.76063853,152.91,152.86,26.0]
[1748661863815,33.76063853,152.91,152.86,59.76063853]
[1748661864412,6.5396418,152.92,152.86,59.76063853]
[1748661864614,33.76063853,152.9,152.85,45.32063853]
[1748661864808,33.76063853,152.87,152.82,59.76063853]
[1748661865008,33.76063853,152.86,152.81,40.30464459]
[1748661865400,33.76063853,152.86,152.81,59.76063853]
[1748661865626,40.30266826,152.86,152.81,59.76063853]
[1748661865820,33.76063853,152.84,152.8,11.56]
[1748661866126,6.3279,152.89,152.83,33.76063853]
[1748661866429,189.02,152.91,152.82,0.28432314]
[1748661866637,33.76063853,152.9,152.85,33.76063853]
[1748661867230,33.76063853,152.89,152.84,33.76063853]
[1748661867731,40.30092596,152.9,152.85,33.76063853]
[1748661867934,33.76063853,152.89,152.84,33.76063853]
[1748661868828,33.76063853,152.88,152.83,33.76063853]
[1748661869040,33.76063853,152.87,152.83,26.0]
[1748661869241,40.30247017,152.87,152.83,26.0]
[1748661869534,33.76063853,152.86,152.81,33.9028001]
[1748661869843,33.76063853,152.85,152.8,45.32063853]
[1748661870423,33.76063853,152.86,152.81,33.76063853]
[1748661871624,6.54065923,152.89,152.82,33.9028001]
[1748661871829,33.76063853,152.89,152.84,33.76063853]
[1748661872419,33.76063853,152.89,152.85,0.14216157]
[1748661872731,146.9,152.91,152.87,33.76063853]
[1748661872937,33.76063853,152.92,152.87,33.76063853]
[1748661873823,33.76063853,152.92,152.87,40.30209838]
[1748661875323,1.6249,152.95,152.89,33.76063853]
[1748661875523,33.76063853,152.96,152.92,33.76063853]
[1748661875840,33.76063853,152.96,152.91,33.76063853]
[1748661876147,33.76063853,152.96,152.89,6.54065014]
[1748661876148,33.76063853,152.92,152.87,71.36063853]
[1748661876335,64.94064687,152.97,152.87,11.6]
[1748661876336,33.76063853,152.91,152.87,11.6]
[1748661876516,64.94064687,152.97,152.87,11.6]
[1748661876517,33.76063853,152.92,152.87,51.90212853]
[1748661876717,33.76063853,152.92,152.87,45.36063853]
[1748661877032,33.76063853,152.94,152.89,33.76063853]
[1748661877234,33.76063853,152.95,152.89,33.76063853]
[1748661877544,180.66063853,152.96,152.91,33.76063853]
[1748661877924,33.76063853,152.95,152.9,33.76063853]
[1748661878722,33.76063853,152.94,152.87,11.6]
[1748661879034,33.76063853,152.9,152.87,11.6]
[1748661879814,40.30099219,152.9,152.87,11.6]
[1748661880916,33.76063853,152.89,152.84,33.76063853]
[1748661881115,33.76063853,152.87,152.82,45.36063853]
[1748661881534,33.76063853,152.87,152.82,71.36063853]
[1748661882245,33.76063853,152.87,152.82,45.36063853]
[1748661882633,33.76063853,152.88,152.83,33.76063853]
[1748661883241,33.76063853,152.87,152.82,45.36063853]
[1748661884246,33.76063853,152.87,152.82,51.90427181]